Cogmind - Beta 14 @@@ ROGUE MODE // 2024.12.14 @ 14:22:11 Player: Cheese Result: Self-destructed Performance ------------- Evolutions (3) 1500 Regions Visited (4) 800 Robots Destroyed (52) 260 Value Destroyed (1734) 1734 Prototype IDs (0) 0 Alien Tech Used (0) 0 Bonus (0) 0 TOTAL SCORE: 4294 Bonus ------- None Cogmind --------- Core Integrity 182/700 Matter 213/300 Energy 85/100 System Corruption 11% Temperature Cool (0) Movement Core (50) Location -7/Factory Parts ------- > --- POWER (2) -------- (None) > --- PROPULSION (3) --- (None) > --- UTILITY (5) ------ (None) > --- WEAPON (3) ------- (None) > --- INVENTORY (5) ---- Small Storage Unit Medium Storage Unit Peak State ------------ > --- POWER ------------ Nuclear Core Light Nuclear Core > --- PROPULSION ------- Light Treads Armored Treads Armored Treads > --- UTILITY ---------- Large Storage Unit Advanced Visual Processing Unit Core Shielding Light Armor Plating Hacking Suite > --- WEAPON ----------- High-powered Shotgun Assault Cannon Flak Cannon > --- INVENTORY -------- Light Ion Engine Small Storage Unit Medium Storage Unit [Rating: 31] Favorites ----------- Power Improved Ion Engine Engine Improved Ion Engine Power Core Light Nuclear Core Propulsion Armored Treads Treads Armored Treads Leg Aluminum Leg Utility Hacking Suite Device Heat Sink Storage Large Storage Unit Processor Advanced Visual Processing Unit Hackware Hacking Suite Protection Light Armor Plating Weapon Flak Cannon Energy Gun Small Laser Ballistic Gun Light Assault Rifle Ballistic Cannon Flak Cannon Build | -11 -10 -9 -8 -7 ------- Run | Yrd Mat Mat Mat Fac Slots Evolved 6 | . . 2 2 2 Power 1 | . . . 1 . Propulsion 1 | . . . . 1 Utility 3 | . . 2 . 1 Weapon 1 | . . . 1 . Parts Attached 44 | 6 6 16 10 6 Power 10 | 1 1 3 3 2 Engine 8 | 1 1 3 2 1 Core 2 | . . . 1 1 Reactor . | . . . . . Propulsion 6 | 2 1 2 . 1 Treads 5 | 2 . 2 . 1 Leg 1 | . 1 . . . Wheel . | . . . . . Hover . | . . . . . Flight . | . . . . . Utility 15 | 1 2 7 3 2 Device 2 | . 1 1 . . Storage 5 | 1 1 3 . . Processor 4 | . . 1 1 2 Hackware 1 | . . 1 . . Protection 3 | . . 1 2 . Artifact . | . . . . . Weapon 13 | 2 2 4 4 1 Energy Gun 4 | . 2 1 . 1 Energy Cannon . | . . . . . Ballistic Gun 5 | 2 . 1 2 . Ballistic Cannon 4 | . . 2 2 . Launcher . | . . . . . Special Weapon . | . . . . . Impact Weapon . | . . . . . Slashing Weapon . | . . . . . Piercing Weapon . | . . . . . Special Melee Weapon . | . . . . . Unidentified Prototypes . | . . . . . Corrupted Parts 1 | . . . . 1 System Corruption 10 | . . . . 10 Parts Lost 27 | . 3 4 6 14 Power 6 | . 1 . 2 3 Propulsion 4 | . 1 . . 3 Utility 8 | . . 2 2 4 Weapon 9 | . 1 2 2 4 Highest Loss Streak 12 | . 2 2 3 12 To Critical Strikes . | . . . . . Average Slot Usage (%) 89 | . 93 81 90 94 Engine 9 | . 13 10 10 3 Core 3 | . . . 4 9 Treads 19 | . 23 17 18 22 Device 2 | . 11 . . . Storage 12 | . 14 16 9 6 Processor 3 | . . 1 4 8 Hackware 6 | . . 8 9 5 Protection 5 | . . 2 9 13 Energy Gun 4 | . 11 6 . . Ballistic Gun 9 | . 16 5 9 6 Ballistic Cannon 10 | . . 9 15 14 Peak Build Rating 31 | 6 7 20 25 31 Average Rating 18 | 4 6 14 23 28 On Entrance 11 | . 6 6 20 25 Naked Turns 27 | . . 27 . . Heaviest Build 60 | 12 19 52 60 50 Greatest Support 60 | 40 40 40 40 60 Greatest Overweight (x) 6 | 1 1 1 1 6 Average Overweight (x) . | . . . . . Largest Inventory Capacity 15 | 8 10 15 15 15 Average Capacity 12 | 7 9 12 15 14 Most Carried 7 | 2 7 5 4 4 Average Carried 3 | . 4 2 3 2 Final Capacity 15 | 8 10 15 15 5 Final Carried 6 | 1 6 4 3 2 Class Distribution -------------------- 58% | Mutant 23% | Tank 11% | Scavenger-Tank 6% | Gunner Dominant Class ---------------- Mutant | -10/Materials Mutant | -9/Materials Tank | -8/Materials Scavenger-Tank | -7/Factory Resources | -11 -10 -9 -8 -7 ----------- Run | Yrd Mat Mat Mat Fac Matter Collected 1306 | 195 162 414 258 277 Remotely . | . . . . . Salvage Created 1564 | . 482 533 253 296 Parts 101 | . 30 33 22 16 Haulers Intercepted 1 | . . 1 . . Recyclers Shooed 1 | . . . 1 . Parts Field Recycled . | . . . . . Retrieved Matter . | . . . . . Parts Self-Destructed . | . . . . . Prevented . | . . . . . Kills | -11 -10 -9 -8 -7 ------- Run | Yrd Mat Mat Mat Fac Combat Hostiles Destroyed 50 | . 13 20 9 8 Melee 2 | . . . . 2 Guns 25 | . 12 8 3 2 Cannons 20 | . . 12 6 2 AOE 2 | . . . . 2 Classes Destroyed 9 | . 3 3 2 1 Hauler 1 | . . 1 . . Watcher 1 | . 1 . . . Swarmer 14 | . 3 8 3 . Grunt 24 | . 10 6 2 6 Brawler 1 | . . . 1 . Duelist 1 | . . 1 . . Sentry 7 | . . 5 2 . Hunter 1 | . . . 1 . Programmer 2 | . . . . 2 Best Kill Streak 7 | . 3 7 3 3 Combat Bots Only 6 | . 3 6 3 3 Max Kills in Single Turn 2 | . 1 2 1 2 Gunslinging . | . . . . . Exploded 2 | . . . . 2 Melee 1 | . . . . 1 Uniques/NPCs Destroyed . | . . . . . Combat | -11 -10 -9 -8 -7 -------- Run | Yrd Mat Mat Mat Fac Hostile Shots Fired 341 | . 73 124 61 83 Missed 85 | . 24 29 15 17 Damage Taken 4048 | . 550 1075 638 1785 Core 948 | . 69 239 122 518 Absorbed by Shields . | . . . . . Redirected to Shielding 52 | . . . 5 47 Regen/Repaired (Parts) 25 | . . . 25 . Core Remaining (%) 72 | 100 72 40 77 . Volleys Fired 162 | . 44 54 38 26 Largest 3 | . 2 2 3 3 Hottest 113 | . 70 88 113 113 Shots Fired 313 | . 86 108 85 34 Gun 199 | . 86 61 38 14 Cannon 114 | . . 47 47 20 Launcher . | . . . . . Special . | . . . . . Kinetic 248 | . 56 74 85 33 Thermal 53 | . 18 34 . 1 Explosive . | . . . . . Electromagnetic 12 | . 12 . . . Robot Hit Streak 26 | . 26 10 7 4 Robot Miss Streak 12 | . 2 10 12 7 Penetration Max . | . . . . . Secondary Targets 2 | . . 2 . . Max Gunslinging Chain 1 | . . 1 . . Shots Hit Robots 218 | . 68 77 52 21 Core Hits 132 | . 27 55 32 18 Critical Kills 1 | . . . . 1 Critical Parts Destroyed 2 | . . . 1 1 Critical Strikes 5 | . . 2 1 2 Burn 2 | . . 2 . . Destroy 3 | . . . 1 2 Melee Attacks . | . . . . . Impact . | . . . . . Slashing . | . . . . . Piercing . | . . . . . Sneak Attacks . | . . . . . Combat Hostiles . | . . . . . Follow-up Attacks . | . . . . . Damage Inflicted 3279 | . 713 1200 729 637 Guns 1650 | . 712 376 337 225 Cannons 1411 | . . 817 370 224 Explosions 162 | . . . . 162 Melee . | . . . . . Ramming 56 | . 1 7 22 26 Kinetic 2390 | . 329 922 707 432 Thermal 512 | . 224 271 . 17 Explosive . | . . . . . Electromagnetic 321 | . 159 . . 162 Impact . | . . . . . Slashing . | . . . . . Piercing . | . . . . . Highest Corruption 11 | . . . 5 11 Average Corruption 4 | . . . 4 1 Corruption Purged . | . . . . . Corruption Blocked . | . . . . . Effects 13 | . . . 12 1 Message Errors 3 | . . . 2 1 Matter Fused 2 | . . . 2 . Heat Flow Errors 2 | . . . 2 . Energy Discharges 1 | . . . 1 . Data Loss (minor) 3 | . . . 3 . Misfires 2 | . . . 2 . Overload Shots . | . . . . . Overflow Damage . | . . . . . Projectiles . | . . . . . Explosions . | . . . . . Melee . | . . . . . Knockbacks 40 | . . 21 16 3 Impact . | . . . . . Kinetic 37 | . . 20 14 3 Secondary 3 | . . 1 2 . Self-Inflicted Damage 192 | . . . . 192 Shots 5 | . . . . 5 Rammed 18 | . 2 2 4 10 Targets Rammed 20 | . 2 2 4 12 Kicked . | . . . . . Crushed 2 | . . . . 2 Highest Temperature 344 | . 33 177 344 69 Average Temperature 56 | . 9 58 86 19 Received Heat Transfer 825 | . 261 276 108 180 Effects 2 | . . . 2 . Short Circuit 1 | . . . 1 . Damage (minor) 1 | . . . 1 . Siege Activations . | . . . . . Robots Corrupted . | . . . . . Combat Hostiles . | . . . . . Parts Fried 2 | . . . . 2 Impact Corruptions . | . . . . . Robots Melted 1 | . 1 . . . Combat Hostiles 1 | . 1 . . . Parts Melted 1 | . 1 . . . Heat Transferred 1546 | . 666 843 . 37 Parts Sabotaged . | . . . . . Parts Stolen . | . . . . . Parts Stripped . | . . . . . Power Chain Reactions 2 | . . . . 2 Alert | -11 -10 -9 -8 -7 ------- Run | Yrd Mat Mat Mat Fac Peak Influence 328 | . 210 328 270 206 Initial 138 | . . 61 138 42 Average 143 | . 113 178 181 82 Maximum Alert Level 1 | . 1 1 1 1 Low Security (%) 75 | 100 97 61 58 94 Level 1 24 | . 2 38 41 5 Level 2 . | . . . . . Level 3 . | . . . . . Level 4 . | . . . . . Level 5 . | . . . . . High Security . | . . . . . Max Security . | . . . . . Squads Dispatched 11 | . 4 2 . 5 Investigation 5 | . 4 1 . . Extermination 1 | . . . . 1 Reinforcement 5 | . . 1 . 4 Assault . | . . . . . Garrison . | . . . . . Intercept . | . . . . . Searches Triggered . | . . . . . Construction Impeded 1 | . . . . 1 Haulers Reinforced . | . . . . . Active Scanning Responses . | . . . . . Cargo Convoy Interrupts . | . . . . . Stealth | -11 -10 -9 -8 -7 --------- Run | Yrd Mat Mat Mat Fac Distress Signals 2 | . . . 2 . Communications Jammed . | . . . . . Distress Signals . | . . . . . Times Spotted 79 | . 16 31 18 14 Peak Tracking Total 5 | . 3 5 3 3 Tactical Retreats 2 | . 1 1 . . Traps | -11 -10 -9 -8 -7 ------- Run | Yrd Mat Mat Mat Fac Traps Triggered 4 | . 3 1 . . Indirectly . | . . . . . Trap Hack Attempts . | . . . . . Triggered . | . . . . . Disarmed . | . . . . . Reprogrammed . | . . . . . Reused . | . . . . . Traps Extracted . | . . . . . Installed . | . . . . . Triggered . | . . . . . Machines | -11 -10 -9 -8 -7 ---------- Run | Yrd Mat Mat Mat Fac Machines Disabled 7 | . . . 3 4 Max in Single Turn 4 | . . . 1 4 Machines Repaired . | . . . . . Machines Dismantled . | . . . . . Machines Sabotaged . | . . . . . Overloaded Fab Kills . | . . . . . Hacking | -11 -10 -9 -8 -7 --------- Run | Yrd Mat Mat Mat Fac Machines Accessed 6 | . 3 1 2 . Terminals 5 | . 3 1 1 . Fabricators . | . . . . . Repair Stations 1 | . . . 1 . Recycling Units . | . . . . . Scanalyzers . | . . . . . Garrison Access . | . . . . . Total Hacks 14 | . 6 2 6 . Successful 10 | . 4 2 4 . Failed 4 | . 2 . 2 . Catastrophic . | . . . . . Database Lockouts . | . . . . . Manual . | . . . . . Terminals 11 | . 6 2 3 . Fabricators . | . . . . . Repair Stations 3 | . . . 3 . Recycling Units . | . . . . . Scanalyzers . | . . . . . Garrison Access . | . . . . . Terminal Hacks 8 | . 4 2 2 . Record 3 | . 2 1 . . Alert Level 2 | . . 1 1 . Zone Layout 3 | . 2 . 1 . Fabricator Hacks . | . . . . . Repair Station Hacks 2 | . . . 2 . Scan Component 1 | . . . 1 . Repair 1 | . . . 1 . Recycling Unit Hacks . | . . . . . Scanalyzer . | . . . . . Garrison Access Hacks . | . . . . . Unauthorized Hacks . | . . . . . Terminals . | . . . . . Fabricators . | . . . . . Repair Stations . | . . . . . Recycling Units . | . . . . . Scanalyzers . | . . . . . Garrison Access . | . . . . . Data Cores Recovered . | . . . . . Used . | . . . . . Hacking Detections 5 | . 2 1 2 . Full Trace Events . | . . . . . Feedback Events . | . . . . . Feedback Blocked . | . . . . . Robot Schematics Acquired . | . . . . . Robots Built . | . . . . . Authchips . | . . . . . Time . | . . . . . Total Robot Build Rating . | . . . . . Part Schematics Acquired . | . . . . . Parts Built . | . . . . . Authchips . | . . . . . Time . | . . . . . Total Part Build Rating . | . . . . . Parts Repaired 1 | . . . 1 . Time 53 | . . . 53 . Parts Recycled . | . . . . . Recycled Matter . | . . . . . Retrieved Matter . | . . . . . Retrieved Components . | . . . . . Parts Scanalyzed . | . . . . . Part Schematics Acquired . | . . . . . Parts Damaged . | . . . . . Bothacking | -11 -10 -9 -8 -7 ------------ Run | Yrd Mat Mat Mat Fac Used RIF Installer . | . . . . . Robots Hacked . | . . . . . Non-combat . | . . . . . Combat . | . . . . . Robot Hacks Applied . | . . . . . Relay Couplers Released . | . . . . . Fabnet Peak Effective % . | . . . . . Robots Rewired . | . . . . . Allies Hacked . | . . . . . Hacks Repelled . | . . . . . Allies | -11 -10 -9 -8 -7 -------- Run | Yrd Mat Mat Mat Fac Total Allies . | . . . . . Largest Group . | . . . . . Highest-Rated Group . | . . . . . Highest-Rated Ally . | . . . . . Total Orders . | . . . . . Ally Attacks . | . . . . . Total Damage . | . . . . . Kills . | . . . . . Allies Corrupted . | . . . . . Allies Melted . | . . . . . Intel | -11 -10 -9 -8 -7 ------- Run | Yrd Mat Mat Mat Fac Robot Analysis Total . | . . . . . Derelict Logs Recovered . | . . . . . Drone Launches . | . . . . . Drone Recoveries . | . . . . . Exploration | -11 -10 -9 -8 -7 ------------- Run | Yrd Mat Mat Mat Fac Turns Passed 3514 | 73 697 1095 931 718 Spaces Moved 1472 | 41 270 473 324 364 Core 68 | 5 . 52 . 11 Treads 1277 | 36 218 346 324 353 Legs 127 | . 52 75 . . Wheels . | . . . . . Hover . | . . . . . Flight . | . . . . . Fastest Speed 50 | 50 160 50 170 50 Average Speed 187 | 150 165 188 236 164 Slowest Speed 350 | 160 190 250 250 350 Overloaded Moves . | . . . . . Propulsion Burnouts . | . . . . . Robots Hopped . | . . . . . Cave-ins Triggered . | . . . . . Exploration Rate (%) 23 | 5 41 40 28 5 Regions Visited 4 Branch Regions . Pre-discovered Areas . | . . . . . Known Exits Taken . | . . . . . Unknown Exits Taken 4 | 1 1 1 1 . Scrap Searched . | . . . . . Spaces Dug . | . . . . . Terrain Destroyed . | . . . . . Melee . | . . . . . Projectile . | . . . . . AOE . | . . . . . Terrain Rammed . | . . . . . Walls Destroyed . | . . . . . Machines Disabled . | . . . . . Actions | -11 -10 -9 -8 -7 --------- Run | Yrd Mat Mat Mat Fac Total 1929 | 53 446 571 420 439 Wait 187 | . 112 16 33 26 Move 1468 | 40 269 472 323 364 Hop . | . . . . . Pick Up 39 | 7 9 10 9 4 Fast Attach . | . . . . . Attach 40 | 6 6 13 10 5 Detach 7 | . 3 1 2 1 Swap 4 | . . 3 . 1 Drop 2 | . 1 . 1 . Fire 162 | . 44 54 38 26 Melee . | . . . . . Ram 5 | . . . . 5 Kick . | . . . . . Crush 15 | . 2 2 4 7 Escape Stasis . | . . . . . Rewire . | . . . . . Trap . | . . . . . Miscellaneous . | . . . . . Route ------- -11/Scrapyard -10/Materials -9/Materials -8/Materials -7/Factory History --------- Turn | Location | Event 31 | -11/Scrapyard | Discovered new exit (range 16) 74 | -11/Scrapyard | Entered Materials 317 | -10/Materials | Build established: Mutant 690 | -10/Materials | Discovered new exit (range 16) 771 | -10/Materials | Entered another Materials area 771 | -9/Materials | Evolved 2 slots: Utility x2 958 | -9/Materials | Released all parts (5) 1484 | -9/Materials | Core integrity fell below 50% 1761 | -9/Materials | Discovered new exit (range 16) 1866 | -9/Materials | Entered another Materials area 1866 | -8/Materials | Evolved 2 slots: Power x1, Weapon x1 2045 | -8/Materials | Repaired Broken Flak Cannon? 2105 | -8/Materials | Lost 3 parts (1p1u1w) 2681 | -8/Materials | Build established: Tank 2767 | -8/Materials | Discovered new exit (range 15) 2797 | -8/Materials | Entered Factory 2797 | -7/Factory | Evolved 2 slots: Propulsion x1, Utility x1 3109 | -7/Factory | Build established: Scavenger-Tank 3500 | -7/Factory | Core integrity fell below 50% 3513 | -7/Factory | System corruption reached 10% 3515 | -7/Factory | Released all parts (1) 3515 | -7/Factory | Self-destructed Last Messages --------------- 03498_ U-05 Engineer lays Concrete. 03501_ Slammed into X-67 Chaingunner. 03501_ Target Analyzer broken. 03501_ Destabilizing: Short circuit. 03501_ Lrg. Storage Unit destroyed. 03504_ Slammed into X-67 Chaingunner. 03505_ Acquired 8 matter. 03505_ Slammed into K-01 Serf. 03505_ Destabilizing: Core damaged (-7). 03506_ Acquired 9 matter. 03506_ Acquired 1 matter. 03508_ Acquired 8 matter. 03509_ K-01 Serf collects debris. 03511_ Acquired Corrupted Particle Gun. 03512_ Integrated Corrupted Particle Gun (+10). [Achievement: System Compromised] 03513_ Particle Gun destroyed. 03513_ K-01 Serf collects debris. 03514_ /YE|=>WH9R:RPFT4M9OS4O22P= TP|Q 03515_ Released Broken Target Analyzer. Map ----- +----------------------------------------------------+ | " # # """ #??????????????????????????? | | # # "" #??????????????????????????? | | " # # "" #??????????????????????????? | | " # # #??????????????????????????? | | " # # #??????????????????????????? | | # # #??????????????????????????? | | #### # #??????????????????????????? | | ???# ##############??????????????????????????? | | ???# #???????????????????????????????????????? | | ???# ########????????????????????????????????? | | ???# #????????????????????????????????? | | ???# #????????????????????????????????? | | ???# #????????????????????????????????? | | ???# #????????????????????????????????? | | ???# #????????????????????????????????? | | ???# #????????????????????????????????? | | ???# #????????????????????????????????? | | ########### #????????????????????????????????? | | ! + #????????????????????????????????? | | # ##############???????????????????? | | "" """ # # #???????????????????? | | "" """ # # #???????????????????? | | "" """ # # =#???????????????????? | | # # #???????????????????? | | "" """ # # #???????????????????? | | "" """ # # * @ #???????????????????? | | "" """ # + = #???????????????????? | | # # u #???????????????????? | | # + k = #???????????????????? | | ####### #???????????????????? | | ###########?????# [ #???????????????????? | | ????????????????# #???????????????????? | | ????????????????#########x####???????????????????? | | ????????????????????????#x#??????????????????????? | | ????????????????????????#u#??????????????????????? | | ????????????????????????#H#??????????????????????? | | ????????????????????????#m#??????????????????????? | | ????????????????????????# #??????????????????????? | | ????????????????????????#u#??????????????????????? | | ????????????????????????# #??????????????????????? | | ???????????????????????% ?????????????????????? | | ????????????????????? #???????????????????? | | ??????????????????? % ??????????????????? | | ????????????????? ????????????????? | | ??????????????? ???????????????? | | ????????????? ######??????????????? | | ??????????? ####### #???????????????????? | | ????????? ???????#########???????????????????? | | ????????? !?????????????????????????????????????? | | ?????????? ??????????????????????????????????????? | +----------------------------------------------------+ Best States ------------- Heat Dissipation 38 Energy Generation 23 Energy Capacity 430 Matter Stores 300 Matter Capacity 300 Sight Range 20 Robot Scan Range 14 Terrain Scan Density 10 Armor Coverage 150 Core Shielding 20 Evasion (%) 50 Target Analysis 5 Recoil Reduction 3 Offensive Hacking 10 Item Schematics ----------------- None Robot Schematics ------------------ None Fabricated ------------ Nothing Alien Tech Used ----------------- None Achievements -------------- It's Just You More Dakka Please System Compromised Challenges ------------ None Game ------ Seed HackingAssaultPerforator Manual? 0 Play Time 00:38:47 Cumulative 5.0 hours Start 2024.12.14 @ 13:41:32 End 2024.12.14 @ 14:22:11 Sessions 1 Manual Loads 0 Difficulty Rogue Special Mode None Game No. 9 Rogue 9 Adventurer 0 Explorer 0 Win Type - Total 0 Types 0/0/0/0/0/0/0/0/0 Lore% 4 Gallery% 9 Achievement% 12 Wizard Run 0 Options --------- Layout 1 ASCII 0 Keyboard 0 Movement Mouse Keybinds 0 Fullscreen 1 Font 16/SmallcapsGlow Map View 55x38 Zoom Use 0% Tactical HUD 1 Map Filters NONE Filters NONE Steam 1 RUN: 2fca940b-8f71-47e2-8fd9-0a1c20b532c1